lending/lending_fUSD_20250429
["ID","MTS","AMOUNT","RATE_DAILY","PERIOD"]
[359338169,1745941848204,-500.0,0.00027397,2]
[359338170,1745941848213,-470.0,0.00027397,2]
[359338171,1745941848223,-470.0,0.00027397,2]
[359338172,1745941848232,-1004.56,0.00027397,2]
[359338173,1745941848242,-670.66,0.00027397,2]
[359338174,1745941848251,-470.0,0.00027397,2]
[359338175,1745941848261,-470.0,0.00027397,2]
[359338176,1745941848271,-470.0,0.00027397,2]
[359338177,1745941848281,-470.0,0.00027397,2]
[359338178,1745941848290,-336.21434332,0.00027397,2]
[359338179,1745941848300,-158.413164,0.00027397,7]
[359338180,1745941848309,-158.413164,0.00027397,7]
[359338181,1745941848318,-158.413164,0.00027397,7]
[359338182,1745941848327,-620.65,0.00027397,2]
[359338183,1745941848336,-470.0,0.00027397,2]
[359338184,1745941848346,-158.413164,0.00027397,7]
[359338185,1745941848355,-158.413164,0.00027397,7]
[359338186,1745941848364,-158.413164,0.00027397,7]
[359338187,1745941848374,-470.0,0.00027397,2]
[359338188,1745941848383,-550.98087176,0.00027397,2]
[359338189,1745941848392,-470.0,0.00027397,2]
[359338190,1745941848402,-158.06644379,0.00027397,2]
[359338191,1745941848411,-470.0,0.00027397,2]
[359338192,1745941848420,-470.0,0.00027397,2]
[359338193,1745941848429,-514.11,0.00027397,2]
[359338194,1745941848608,-589.54,0.00027397,2]
[359338195,1745941848618,-4895.41,0.00027397,2]
[359338196,1745941848629,-673.24,0.00027397,2]
[359338197,1745941848639,-300.0,0.00027397,2]
[359338198,1745941848648,-504.20925041,0.00027397,2]
[359338199,1745941848658,-470.0,0.00027397,2]
[359338200,1745941848667,-470.0,0.00027397,2]
[359338201,1745941848677,-470.0,0.00027397,2]
[359338202,1745941848686,-470.0,0.00027397,2]
[359338203,1745941848695,-470.0,0.00027397,2]
[359338204,1745941848705,-470.0,0.00027397,2]
[359338205,1745941848714,-717.734999,0.00027397,7]
[359338206,1745941848725,-717.734999,0.00027397,7]
[359338207,1745941848734,-717.734999,0.00027397,7]
[359338208,1745941848745,-470.0,0.00027397,2]
[359338209,1745941848754,-8711.46,0.00027397,2]
[359338210,1745941848764,-470.0,0.00027397,2]
[359338211,1745941848773,-957.82,0.00027397,2]
[359338212,1745941848783,-470.0,0.00027397,2]
[359338213,1745941848792,-470.0,0.00027397,2]
[359338214,1745941848801,-470.0,0.00027397,2]
[359338215,1745941848811,-513.88638995,0.00027397,2]
[359338216,1745941848820,-199.73971141,0.00027397,2]
[359338217,1745941848830,-470.0,0.00027397,2]
[359338218,1745941848839,-470.0,0.00027397,2]
[359338219,1745941848849,-770.47,0.00027397,2]
[359338220,1745941848860,-500.0,0.00027397,2]
[359338221,1745941848870,-581.06,0.00027397,2]
[359338222,1745941848879,-470.0,0.00027397,2]
[359338223,1745941848888,-151.0,0.00027397,7]
[359338224,1745941848898,-470.0,0.00027397,2]
[359338225,1745941848907,-151.0,0.00027397,7]
[359338226,1745941848916,-151.0,0.00027397,7]
[359338227,1745941848926,-500.0,0.00027397,2]
[359338228,1745941848936,-470.0,0.00027397,2]
[359338229,1745941848945,-758.69,0.00027397,2]
[359338230,1745941848955,-500.0,0.00027397,2]
[359338231,1745941848964,-283.420355,0.00027397,7]
[359338232,1745941848974,-470.0,0.00027397,2]
[359338233,1745941848983,-1925.64,0.00027397,2]
[359338234,1745941848993,-470.0,0.00027397,2]
[359338235,1745941849003,-505.64939833,0.00027397,2]
[359338236,1745941849012,-545.67,0.00027397,2]
[359338237,1745941849023,-470.0,0.00027397,2]
[359338238,1745941849032,-511.69517068,0.00027397,2]
[359338239,1745941849042,-500.0,0.00027397,2]
[359338240,1745941849052,-470.0,0.00027397,2]
[359338241,1745941849061,-470.0,0.00027397,2]
[359338242,1745941849070,-470.0,0.00027397,2]
[359338243,1745941849080,-470.0,0.00027397,2]
[359338244,1745941849089,-470.0,0.00027397,2]
[359338245,1745941849099,-517.0,0.00027397,2]
[359338246,1745941849108,-470.0,0.00027397,2]
[359338247,1745941849118,-508.43078616,0.00027397,2]
[359338248,1745941849128,-411.81868988,0.00027397,2]
[359338249,1745941849137,-470.0,0.00027397,2]
[359338250,1745941849146,-470.0,0.00027397,2]
[359338251,1745941849156,-470.0,0.00027397,2]
[359338252,1745941849166,-470.0,0.00027397,2]
[359338253,1745941849176,-614.18,0.00027397,2]
[359338254,1745941849185,-470.0,0.00027397,2]
[359338255,1745941849195,-1235.22,0.00027397,2]
[359338256,1745941849205,-151.0,0.00027397,7]
[359338257,1745941849214,-1645.73,0.00027397,2]
[359338258,1745941849224,-470.0,0.00027397,2]
[359338259,1745941849233,-296.562071,0.00027397,7]
[359338260,1745941849243,-503.17,0.00027397,2]
[359338261,1745941849252,-338.32841734,0.00027397,2]
[359338262,1745941849262,-514.47029844,0.00027397,2]
[359338263,1745941849273,-151.0,0.00027397,7]
[359338264,1745941849283,-470.0,0.00027397,2]
[359338265,1745941849292,-1215.01,0.00027397,2]
[359338266,1745941849302,-151.0,0.00027397,7]
[359338267,1745941849312,-151.0,0.00027397,7]
[359338268,1745941849321,-470.0,0.00027397,2]
[359338269,1745941849331,-470.0,0.00027397,2]
[359338270,1745941849340,-11258.27,0.00027397,2]
[359338271,1745941849349,-470.0,0.00027397,2]
[359338272,1745941849359,-470.0,0.00027397,2]
[359338273,1745941849368,-580.52,0.00027397,2]
[359338274,1745941849377,-151.0,0.00027397,7]
[359338275,1745941849387,-151.0,0.00027397,7]
[359338276,1745941849397,-151.0,0.00027397,7]
[359338277,1745941849406,-1207.3,0.00027397,2]
[359338278,1745941849415,-470.0,0.00027397,2]
[359338279,1745941849425,-514.21,0.00027397,2]
[359338280,1745941849434,-470.0,0.00027397,2]
[359338281,1745941849443,-409.51697781,0.00027397,2]
[359338282,1745941849452,-501.51810184,0.00027397,2]
[359338283,1745941849462,-39269.99,0.00027397,2]
[359338284,1745941849471,-470.0,0.00027397,2]
[359338285,1745941849480,-470.0,0.00027397,2]
[359338286,1745941849490,-470.0,0.00027397,2]
[359338287,1745941849499,-470.0,0.00027397,2]
[359338288,1745941849508,-470.0,0.00027397,2]
[359338289,1745941849518,-500.0,0.00027397,2]
[359338290,1745941849527,-470.0,0.00027397,2]
[359338291,1745941849536,-500.0,0.00027397,2]
[359338292,1745941849548,-500.0,0.00027397,2]
[359338293,1745941849557,-511.4373419,0.00027397,2]
[359338294,1745941849567,-470.0,0.00027397,2]
[359338295,1745941849576,-747.27,0.00027397,2]
[359338296,1745941849586,-531.93,0.00027397,2]
[359338297,1745941849596,-2611.75,0.00027397,2]
[359338298,1745941849605,-470.0,0.00027397,2]
[359338299,1745941849615,-470.0,0.00027397,2]
[359338300,1745941849624,-470.0,0.00027397,2]
[359338301,1745941849634,-470.0,0.00027397,2]
[359338302,1745941849644,-346.56207794,0.00027397,2]
[359338303,1745941849653,-470.0,0.00027397,2]
[359338304,1745941849663,-470.0,0.00027397,2]
[359338305,1745941849672,-624.75,0.00027397,2]
[359338306,1745941849682,-769.36,0.00027397,2]
[359338307,1745941849691,-470.0,0.00027397,2]
[359338308,1745941849700,-470.0,0.00027397,2]
[359338309,1745941849711,-470.0,0.00027397,2]
[359338310,1745941849720,-253.71047882,0.00027397,2]
[359338311,1745941849729,-470.0,0.00027397,2]
[359338312,1745941849739,-504.62737055,0.00027397,2]
[359338313,1745941849750,-151.0,0.00027397,7]
[359338314,1745941849759,-470.0,0.00027397,2]
[359338315,1745941849769,-151.0,0.00027397,7]
[359338316,1745941849778,-151.0,0.00027397,7]
[359338317,1745941849788,-470.0,0.00027397,2]
[359338318,1745941849797,-3740.48,0.00027397,2]
[359338319,1745941849807,-470.0,0.00027397,2]
[359338320,1745941849816,-4995.8,0.00027397,2]
[359338321,1745941849825,-470.0,0.00027397,2]
[359338322,1745941849835,-470.0,0.00027397,2]
[359338323,1745941849844,-470.0,0.00027397,2]
[359338324,1745941849854,-1493.89,0.00027397,2]
[359338325,1745941849864,-442.26468506,0.00027397,2]
[359338326,1745941849874,-470.0,0.00027397,2]
[359338327,1745941849884,-470.0,0.00027397,2]
[359338328,1745941849894,-368.5334502,0.00027397,2]
[359338329,1745941849904,-515.89,0.00027397,2]
[359338330,1745941849914,-470.0,0.00027397,2]
[359338331,1745941849925,-470.0,0.00027397,2]
[359338332,1745941849935,-641.72,0.00027397,2]
[359338333,1745941849945,-470.0,0.00027397,2]
[359338334,1745941849955,-538.90001691,0.00027397,2]
[359338335,1745941849964,-470.0,0.00027397,2]
[359338336,1745941849974,-2093.59,0.00027397,2]
[359338337,1745941849983,-470.0,0.00027397,2]
[359338338,1745941849993,-470.0,0.00027397,2]
[359338339,1745941850003,-470.0,0.00027397,2]
[359338340,1745941850014,-470.0,0.00027397,2]
[359338341,1745941850023,-589.5,0.00027397,2]
[359338342,1745941850033,-799.98,0.00027397,2]
[359338343,1745941850042,-529.97,0.00027397,2]
[359338344,1745941850053,-470.0,0.00027397,2]
[359338345,1745941850062,-502.64,0.00027397,2]
[359338346,1745941850072,-512.34294902,0.00027397,2]
[359338347,1745941850082,-470.0,0.00027397,2]
[359338348,1745941850091,-470.0,0.00027397,2]
[359338349,1745941850101,-470.0,0.00027397,2]
[359338350,1745941850110,-470.0,0.00027397,2]
[359338351,1745941850120,-470.0,0.00027397,2]
[359338352,1745941850129,-470.0,0.00027397,2]
[359338353,1745941850143,-470.0,0.00027397,2]
[359338354,1745941850152,-470.1013043,0.00027397,2]
[359338355,1745941850163,-3519.07,0.00027397,2]
[359338356,1745941850172,-470.0,0.00027397,2]
[359338357,1745941850182,-470.0,0.00027397,2]
[359338358,1745941850191,-794.34,0.00027397,2]
[359338359,1745941850200,-470.0,0.00027397,2]
[359338360,1745941850210,-470.0,0.00027397,2]
[359338361,1745941850219,-470.0,0.00027397,2]
[359338362,1745941850229,-470.0,0.00027397,2]
[359338363,1745941850238,-470.0,0.00027397,2]
[359338364,1745941850248,-470.0,0.00027397,2]
[359338365,1745941850257,-828.1,0.00027397,2]
[359338366,1745941850267,-470.0,0.00027397,2]
[359338367,1745941850276,-270.456999,0.00027397,7]
[359338368,1745941850286,-270.456999,0.00027397,7]
[359338369,1745941850295,-500.0,0.00027397,2]
[359338370,1745941850305,-470.0,0.00027397,2]
[359338371,1745941850314,-470.0,0.00027397,2]
[359338372,1745941850324,-591.5,0.00027397,2]
[359338373,1745941850333,-270.456999,0.00027397,7]
[359338374,1745941850342,-480.0,0.00027397,2]
[359338375,1745941850352,-470.0,0.00027397,2]
[359338376,1745941850361,-270.456999,0.00027397,7]
[359338377,1745941850370,-270.456999,0.00027397,7]
[359338378,1745941850380,-270.456999,0.00027397,7]
[359338379,1745941850389,-212.62759735,0.00027397,2]
[359338380,1745941850399,-470.0,0.00027397,2]
[359338381,1745941850408,-470.0,0.00027397,2]
[359338382,1745941850418,-470.0,0.00027397,2]
[359338383,1745941850427,-470.0,0.00027397,2]
[359338384,1745941850436,-470.0,0.00027397,2]
[359338385,1745941850446,-534.45,0.00027397,2]
[359338386,1745941850455,-470.0,0.00027397,2]
[359338387,1745941850464,-504.84823776,0.00027397,2]
[359338388,1745941850475,-720.17,0.00027397,2]
[359338389,1745941850484,-470.0,0.00027397,2]
[359338390,1745941850494,-470.0,0.00027397,2]
[359338391,1745941850503,-1503.91,0.00027397,2]
[359338392,1745941850513,-675.04,0.00027397,2]
[359338393,1745941850523,-470.0,0.00027397,2]
[359338394,1745941850533,-470.0,0.00027397,2]
[359338395,1745941850542,-923.44,0.00027397,2]
[359338396,1745941850552,-208.0742339,0.00027397,2]
[359338397,1745941850562,-606.84,0.00027397,2]
[359338398,1745941850571,-497.43,0.00027397,2]
[359338399,1745941850580,-1037.55,0.00027397,2]
[359338400,1745941850591,-1635.79,0.00027397,2]
[359338401,1745941850601,-642.64,0.00027397,2]
[359338402,1745941850611,-470.0,0.00027397,2]
[359338403,1745941850620,-470.0,0.00027397,2]
[359338404,1745941850631,-518.99,0.00027397,2]
[359338405,1745941850640,-470.0,0.00027397,2]
[359338406,1745941850649,-470.0,0.00027397,2]
[359338407,1745941850658,-603.00903675,0.00027397,2]
[359338408,1745941850667,-512.76250517,0.00027397,2]
[359338409,1745941850677,-470.0,0.00027397,2]
[359338410,1745941850688,-1836.6,0.00027397,2]
[359338411,1745941850697,-530.17,0.00027397,2]
[359338412,1745941850707,-150.0,0.00027397,7]
[359338413,1745941850717,-470.0,0.00027397,2]
[359338414,1745941850727,-470.0,0.00027397,2]
[359338415,1745941850737,-470.0,0.00027397,2]
[359338416,1745941850747,-1100.21,0.00027397,2]
[359338417,1745941850758,-151.0,0.00027397,7]
[359338418,1745941850767,-470.0,0.00027397,2]
[359338419,1745941850776,-153.50650197,0.00027397,7]
[359338420,1745941850786,-996.9,0.00027397,2]
[359338421,1745941850795,-1072.93489662,0.00027397,2]
[359338422,1745941850804,-151.0,0.00027397,7]
[359338423,1745941850813,-151.0,0.00027397,7]
[359338424,1745941850822,-150.0,0.00027397,7]
[359338425,1745941850831,-481.61,0.00027397,2]
[359338426,1745941850841,-150.0,0.00027397,7]
[359338427,1745941850850,-151.0,0.00027397,7]
[359338428,1745941850859,-232.99114,0.00027397,7]
[359338429,1745941850869,-510.51700713,0.00027397,2]
[359338430,1745941850879,-470.0,0.00027397,2]
[359338431,1745941850888,-672.21,0.00027397,2]
[359338432,1745941850898,-150.0,0.00027397,7]
[359338433,1745941850907,-470.0,0.00027397,2]
[359338434,1745941850916,-470.0,0.00027397,2]
[359338435,1745941850926,-500.0,0.00027397,7]
[359338436,1745941850936,-693.25,0.00027397,2]
[359338437,1745941850945,-627.73,0.00027397,2]
[359338438,1745941850955,-471.79,0.00027397,2]
[359338439,1745941850964,-151.2565944,0.00027397,7]
[359338440,1745941850974,-524.25334998,0.00027397,2]
[359338441,1745941850983,-470.0,0.00027397,2]
[359338442,1745941850993,-366.26452336,0.00027397,2]
[359338443,1745941851002,-470.0,0.00027397,2]
[359338444,1745941851012,-470.0,0.00027397,2]
[359338445,1745941851021,-575.77591931,0.00027397,2]
[359338446,1745941851031,-500.0,0.00027397,7]
[359338447,1745941851041,-470.0,0.00027397,2]
[359338448,1745941851051,-470.0,0.00027397,2]
[359338449,1745941851060,-470.0,0.00027397,2]
[359338450,1745941851071,-470.0,0.00027397,2]
[359338451,1745941851081,-470.0,0.00027397,2]
[359338452,1745941851090,-1466.81,0.00027397,2]
[359338453,1745941851100,-1385.09,0.00027397,2]
[359338454,1745941851110,-151.47610733,0.00027397,2]
[359338455,1745941851119,-935.02,0.00027397,2]
[359338456,1745941851129,-153.73471613,0.00027397,7]
[359338457,1745941851138,-1734.96,0.00027397,2]
[359338458,1745941851149,-470.0,0.00027397,2]
[359338459,1745941851159,-613.71,0.00027397,2]
[359338460,1745941851168,-160.8508664,0.00027397,7]
[359338461,1745941851178,-470.0,0.00027397,2]
[359338462,1745941851188,-500.0,0.00027397,2]
[359338463,1745941851197,-456.01434326,0.00027397,2]
[359338464,1745941851207,-470.0,0.00027397,2]
[359338465,1745941851216,-500.0,0.00027397,7]
[359338466,1745941851225,-273.476293,0.00027397,7]
[359338467,1745941851234,-273.476293,0.00027397,7]
[359338468,1745941851243,-150.0,0.00027397,2]
[359338469,1745941851253,-273.476293,0.00027397,7]
[359338470,1745941851263,-150.0,0.00027397,7]
[359338471,1745941851273,-697.48,0.00027397,2]
[359338472,1745941851283,-500.0,0.00027397,2]
[359338473,1745941851292,-273.476293,0.00027397,7]
[359338474,1745941851301,-470.0,0.00027397,2]
[359338475,1745941851311,-273.476293,0.00027397,7]
[359338476,1745941851320,-273.476293,0.00027397,7]
[359338477,1745941851329,-5128.66999586,0.00027397,2]
[359338478,1745941851338,-470.0,0.00027397,2]
[359338479,1745941851348,-470.0,0.00027397,2]
[359338480,1745941851358,-1161.85,0.00027397,2]
[359338481,1745941851367,-699.9,0.00027397,2]
[359338482,1745941851523,-512.50829103,0.00027397,2]
[359338483,1745941851533,-664.72,0.00027397,2]
[359338484,1745941851544,-470.0,0.00027397,2]
[359338485,1745941851555,-857.85,0.00027397,2]
[359338486,1745941851565,-470.0,0.00027397,2]
[359338487,1745941851574,-503.1781144,0.00027397,2]
[359338488,1745941851584,-470.0,0.00027397,2]
[359338489,1745941851595,-470.0,0.00027397,2]
[359338490,1745941851604,-151.0,0.00027397,7]
[359338491,1745941851613,-620.75,0.00027397,2]
[359338492,1745941851624,-561.25875774,0.00027397,2]
[359338493,1745941851635,-507.61542298,0.00027397,2]
[359338494,1745941851644,-470.0,0.00027397,2]
[359338495,1745941851654,-812.82,0.00027397,2]
[359338496,1745941851665,-439.43733849,0.00027397,2]
[359338497,1745941851674,-470.0,0.00027397,2]
[359338498,1745941851684,-470.0,0.00027397,2]
[359338499,1745941851693,-307.73300286,0.00027397,2]
[359338500,1745941851703,-470.0,0.00027397,2]
[359338501,1745941851712,-551.78469159,0.00027397,2]
[359338502,1745941851722,-470.0,0.00027397,2]
[359338503,1745941851731,-1461.51,0.00027397,2]
[359338504,1745941851741,-470.0,0.00027397,2]
[359338505,1745941851750,-560.84347596,0.00027397,2]
[359338506,1745941851758,-391.72043151,0.00027397,2]
[359338507,1745941851767,-524.19794883,0.00027397,2]
[359338508,1745941851778,-513.13300052,0.00027397,2]
[359338509,1745941851786,-470.0,0.00027397,2]
[359338510,1745941851794,-662.26,0.00027397,2]
[359338511,1745941851803,-470.0,0.00027397,2]
[359338512,1745941851811,-470.0,0.00027397,2]
[359338513,1745941851820,-724.53,0.00027397,2]
[359338514,1745941851830,-811.8,0.00027397,2]
[359338515,1745941851839,-500.0,0.00027397,2]
[359338516,1745941851849,-470.0,0.00027397,2]
[359338517,1745941851859,-470.0,0.00027397,2]
[359338518,1745941851868,-513.01562511,0.00027397,2]
[359338519,1745941851878,-509.61323067,0.00027397,2]
[359338520,1745941851888,-470.0,0.00027397,2]
[359338521,1745941851898,-701.86,0.00027397,2]
[359338522,1745941851908,-470.0,0.00027397,2]
[359338523,1745941851918,-470.0,0.00027397,2]
[359338524,1745941851929,-581.31668919,0.00027397,2]
[359338525,1745941851939,-688.81,0.00027397,2]
[359338526,1745941851950,-470.0,0.00027397,2]
[359338527,1745941851960,-575.77,0.00027397,2]
[359338528,1745941851970,-470.0,0.00027397,2]
[359338529,1745941851980,-549.37037192,0.00027397,2]
[359338530,1745941851990,-470.0,0.00027397,2]
[359338531,1745941852000,-1003.95,0.00027397,2]
[359338532,1745941852010,-470.0,0.00027397,2]
[359338533,1745941852021,-476.28,0.00027397,2]
[359338534,1745941852030,-511.56253241,0.00027397,2]
[359338535,1745941852040,-470.0,0.00027397,2]
[359338536,1745941852050,-504.438881,0.00027397,2]
[359338537,1745941852060,-511.21183709,0.00027397,2]
[359338538,1745941852069,-779.31,0.00027397,2]
[359338539,1745941852078,-579.76,0.00027397,2]
[359338540,1745941852088,-470.0,0.00027397,2]
[359338541,1745941852098,-470.0,0.00027397,2]
[359338542,1745941852107,-507.66175698,0.00027397,2]
[359338543,1745941852116,-470.0,0.00027397,2]
[359338544,1745941852126,-704.08,0.00027397,2]
[359338545,1745941852135,-470.0,0.00027397,2]
[359338546,1745941852145,-6558.73,0.00027397,2]
[359338547,1745941852155,-521.86661182,0.00027397,2]
[359338548,1745941852164,-470.0,0.00027397,2]
[359338549,1745941852173,-470.0,0.00027397,2]
[359338550,1745941852182,-927.87,0.00027397,2]
[359338551,1745941852192,-542.06,0.00027397,2]
[359338552,1745941852201,-470.0,0.00027397,2]
[359338553,1745941852210,-470.0,0.00027397,2]
[359338554,1745941852219,-470.0,0.00027397,2]
[359338555,1745941852229,-470.0,0.00027397,2]
[359338556,1745941852238,-470.0,0.00027397,2]
[359338557,1745941852248,-2042.3,0.00027397,2]
[359338558,1745941852257,-470.0,0.00027397,2]
[359338559,1745941852266,-470.0,0.00027397,2]
[359338560,1745941852276,-470.0,0.00027397,2]
[359338561,1745941852285,-470.0,0.00027397,2]
[359338562,1745941852295,-599.89,0.00027397,2]
[359338563,1745941852304,-470.0,0.00027397,2]
[359338564,1745941852314,-505.03235928,0.00027397,2]
[359338565,1745941852323,-1354.42,0.00027397,2]
[359338566,1745941852332,-470.0,0.00027397,2]
[359338567,1745941852342,-526.58,0.00027397,2]
[359338568,1745941852351,-470.0,0.00027397,2]
[359338569,1745941852360,-746.75,0.00027397,2]
[359338570,1745941852370,-470.0,0.00027397,2]
[359338571,1745941852379,-521.84,0.00027397,2]
[359338572,1745941852388,-614.6,0.00027397,2]
[359338573,1745941852397,-470.0,0.00027397,2]
[359338574,1745941852406,-470.0,0.00027397,2]
[359338575,1745941852416,-417.05574861,0.00027397,2]
[359338576,1745941852426,-223.204384,0.00027397,7]
[359338577,1745941852436,-223.204384,0.00027397,7]
[359338578,1745941852445,-223.204384,0.00027397,7]
[359338579,1745941852454,-502.8926629,0.00027397,2]
[359338580,1745941852464,-470.0,0.00027397,2]
[359338581,1745941852473,-847.26,0.00027397,2]
[359338582,1745941852482,-470.0,0.00027397,2]
[359338583,1745941852492,-470.0,0.00027397,2]
[359338584,1745941852501,-223.204384,0.00027397,7]
[359338585,1745941852510,-223.204384,0.00027397,7]
[359338586,1745941852520,-470.0,0.00027397,2]
[359338587,1745941852530,-470.0,0.00027397,2]
[359338588,1745941852539,-223.204384,0.00027397,7]
[359338589,1745941852550,-533.87922172,0.00027397,2]
[359338590,1745941852561,-470.0,0.00027397,2]
[359338591,1745941852571,-470.0,0.00027397,2]
[359338592,1745941852580,-1664.48,0.00027397,2]
[359338593,1745941852591,-815.67,0.00027397,2]
[359338594,1745941852600,-648.4,0.00027397,2]
[359338595,1745941852610,-400.0,0.00027397,2]
[359338596,1745941852619,-529.02357208,0.00027397,2]
[359338597,1745941852630,-503.62483637,0.00027397,2]
[359338598,1745941852640,-470.0,0.00027397,2]
[359338599,1745941852649,-545.01,0.00027397,2]
[359338600,1745941852659,-500.0,0.00027397,2]
[359338601,1745941852668,-545.01,0.00027397,2]
[359338602,1745941852678,-545.01,0.00027397,2]
[359338603,1745941852687,-586.57,0.00027397,2]
[359338604,1745941852697,-545.01,0.00027397,2]
[359338605,1745941852706,-545.01,0.00027397,2]
[359338606,1745941852715,-545.01,0.00027397,2]
[359338607,1745941852724,-288.374003,0.00027397,7]
[359338608,1745941852734,-470.0,0.00027397,2]
[359338609,1745941852743,-700.0,0.00027397,2]
[359338610,1745941852752,-155.987365,0.00027397,7]
[359338611,1745941852762,-151.79,0.00027397,2]
[359338612,1745941852772,-151.0,0.00027397,7]
[359338613,1745941852783,-151.0,0.00027397,7]
[359338614,1745941852792,-151.0,0.00027397,7]
[359338615,1745941852802,-1792.0,0.00027397,2]
[359338616,1745941852811,-375.81,0.00027397,2]
[359338617,1745941852821,-499.56,0.00027397,2]
[359338618,1745941852830,-300.0,0.00027397,2]
[359338619,1745941852840,-250.0,0.000274,2]
[359338620,1745941852850,-1103.0,0.000274,2]
[359338621,1745941852860,-151.0,0.00027401,7]
[359338622,1745941852870,-151.0,0.00027401,7]
[359338623,1745941852880,-151.0,0.00027401,7]
[359338624,1745941852890,-9886.85377621,0.00027401,2]
[359338625,1745941852900,-500.0,0.00027405,2]
[359338626,1745941852909,-500.0,0.00027405,2]
[359338627,1745941852918,-200.0,0.00027425,2]
[359338628,1745941852927,-500.0,0.00027434,2]
[359338629,1745941852937,-1112.63175219,0.0002744,2]
[359338630,1745941852946,-1142.74281637,0.0002744,2]
[359338631,1745941852955,-1061.51411807,0.0002744,2]
[359338632,1745941852964,-151.0,0.0002744,7]
[359338633,1745941852973,-151.0,0.0002744,7]
[359338634,1745941852983,-500.0,0.00027465,2]
[359338635,1745941852992,-500.0,0.00027465,2]
[359338636,1745941853001,-500.0,0.00027465,2]
[359338637,1745941853011,-500.0,0.00027465,2]
[359338638,1745941853020,-500.0,0.00027467,2]
[359338639,1745941853030,-24141.845782,0.00027483,2]
[359338640,1745941853039,-500.0,0.00027485,2]
[359338641,1745941853049,-500.0,0.00027486,2]
[359338642,1745941853058,-500.0,0.00027486,2]
[359338643,1745941853067,-500.0,0.00027486,2]
[359338644,1745941853076,-540.11,0.00027493,2]
[359338645,1745941853085,-500.0,0.00027496,2]
[359338646,1745941853094,-193.93735622,0.000275,2]
[359338647,1745941853103,-2453.80597723,0.00027502,2]
[359338648,1745941853112,-500.0,0.00027506,2]
[359338649,1745941853121,-1000.0,0.00027506,2]
[359338650,1745941853131,-151.0,0.00027506,7]
[359338651,1745941853140,-151.0,0.00027506,7]
[359338652,1745941853149,-30044.1114956,0.00027511,2]
[359338653,1745941853159,-215.0738,0.00027513,2]
[359338654,1745941853169,-1338.0,0.00027521,2]
[359338655,1745941853179,-922.0,0.00027521,2]
[359338656,1745941853188,-823.999,0.00027521,2]
[359338657,1745941853197,-1288.0,0.00027521,2]
[359338658,1745941853207,-2067.0,0.00027521,2]
[359338659,1745941853216,-640.764,0.00027521,2]
[359338660,1745941853226,-607.096,0.00027521,2]
[359338661,1745941853235,-913.0,0.00027521,2]
[359338662,1745941853245,-1520.602,0.00027521,2]
[359338663,1745941853254,-874.0,0.00027521,2]
[359338664,1745941853263,-877.0,0.00027521,2]
[359338665,1745941853274,-261.02,0.00027521,2]
[359338666,1745941853284,-614.828,0.00027521,2]
[359338667,1745941853293,-3998.0,0.00027521,2]
[359338668,1745941853303,-6743.0,0.00027521,2]